bitfinex-derivatives/quotes_SOLF0:USTF0_20251125
["timestamp","ask_amount","ask_price","bid_price","bid_amount"]
[1764061887478,3.15,135.15,135.05,25.64]
[1764061887772,0.05003786,135.11,135.09,0.05197606]
[1764061888774,3.20003786,135.11,135.09,0.05197606]
[1764061888974,0.05003786,135.11,135.09,0.05197606]
[1764061890078,3.20003786,135.11,135.09,0.05197606]
[1764061890675,0.05003786,135.11,135.09,0.05197606]
[1764061891972,9.86383786,135.11,135.09,0.05197606]
[1764061892168,6.71383786,135.11,135.09,0.05197606]
[1764061892372,3.20003786,135.11,135.09,0.05197606]
[1764061893477,9.86363786,135.11,135.09,0.05197606]
[1764061895182,0.05003786,135.11,135.09,0.05197606]
[1764061895383,3.20003786,135.11,135.09,0.05197606]
[1764061897184,9.86363786,135.11,135.09,0.05197606]
[1764061897383,3.15,135.1,135.09,0.05197606]
[1764061900085,6.71363786,135.11,135.09,0.05197606]
[1764061900390,9.86363786,135.11,135.09,0.05197606]
[1764061902984,3.15,135.1,135.09,0.05197606]
[1764061903381,6.71363786,135.11,135.09,0.05197606]
[1764061903685,0.05003786,135.11,135.09,0.05197606]
[1764061903889,3.20003786,135.11,135.09,0.05197606]
[1764061905691,3.15,135.1,135.09,0.05197606]
[1764061907596,0.05003786,135.11,135.09,0.05197606]
[1764061909788,2.96003786,135.11,135.09,0.05197606]
[1764061910297,0.05003786,135.11,135.09,0.05197606]
[1764061911700,0.05003786,135.11,135.09,2.21094855]
[1764061913504,0.05003786,135.11,135.09,0.05197606]
[1764061913901,2.96003786,135.11,135.09,0.05197606]
[1764061917108,9.62363786,135.11,135.09,0.05197606]
[1764061917306,2.91,135.1,135.09,0.05197606]
[1764061918910,2.93,135.08,135.05,13.69508007]
[1764061919211,2.93,135.08,135.04,25.62]
[1764061919609,2.93,135.06,135.04,25.62]
[1764061920004,2.98590203,135.06,135.04,0.05475604]
[1764061920204,9.65190203,135.06,135.04,0.05475604]
[1764061920411,2.93,135.05,135.04,0.05475604]
[1764061920810,0.05590203,135.06,135.04,2.21372853]
[1764061921109,0.05590203,135.06,135.04,15.9088086]
[1764061921305,2.93,135.1,135.05,13.69508007]
[1764061921513,2.93,135.1,135.06,2.15897249]
[1764061921713,9.5929,135.13,135.07,32.2853]
[1764061922013,2.93,135.13,135.07,32.2853]
[1764061922212,0.050655,135.11,135.09,0.04680267]
[1764061923111,2.980655,135.11,135.09,0.04680267]
[1764061924213,0.050655,135.11,135.09,0.04680267]
[1764061924615,0.050655,135.11,135.09,25.66680267]
[1764061925311,0.050655,135.11,135.09,27.82577516]
[1764061925711,0.050655,135.11,135.09,45.36188274]
[1764061925916,0.050655,135.11,135.1,25.62]
[1764061928403,2.980655,135.11,135.09,0.04680267]
[1764061928610,0.050655,135.11,135.1,25.62]
[1764061933323,0.050655,135.11,135.09,13.74188274]
[1764061933520,0.050655,135.11,135.1,25.62]
[1764061935615,0.050655,135.11,135.1,25.6]
[1764061935915,2.93,135.15,135.1,45.95898007]
[1764061936124,2.93,135.15,135.11,13.69508007]
[1764061936421,2.93,135.15,135.1,41.45405256]
[1764061936818,44.95653,135.17,135.12,2.15897249]
[1764061937019,3.06907266,135.16,135.13,13.75086611]
[1764061937317,9.612,135.14,135.13,0.05578604]
[1764061937525,2.95,135.14,135.13,0.05578604]
[1764061937723,2.95,135.15,135.13,0.05578604]
[1764061938215,9.66047266,135.16,135.13,0.05578604]
[1764061939214,2.95,135.15,135.13,0.05578604]
[1764061939813,6.71047266,135.16,135.13,0.05578604]
[1764061940019,9.66047266,135.16,135.13,0.05578604]
[1764061941013,2.99907266,135.16,135.13,0.05578604]
[1764061941413,0.04907266,135.16,135.13,0.05578604]
[1764061941611,2.99907266,135.16,135.13,0.05578604]
[1764061942819,9.66017266,135.16,135.13,0.05578604]
[1764061943019,2.95,135.14,135.1,13.69508007]
[1764061943218,2.95,135.14,135.09,13.69508007]
[1764061943419,2.95,135.14,135.08,39.29508007]
[1764061943620,2.95,135.12,135.08,32.2646]
[1764061943922,0.05215117,135.11,135.09,0.04853432]
[1764061944122,3.00215117,135.11,135.09,0.04853432]
[1764061944719,9.66585117,135.11,135.09,0.04853432]
[1764061945028,2.95,135.1,135.09,0.04853432]
[1764061948118,2.95,135.08,135.05,13.69508007]
[1764061948429,2.95,135.08,135.04,25.6]
[1764061948624,2.95,135.08,135.02,15.85405256]
[1764061948825,2.95,135.08,135.03,25.6]
[1764061949124,2.95,135.05,135.04,0.05604013]
[1764061949828,9.6161,135.06,135.04,0.05604013]
[1764061950426,2.95,135.06,135.04,0.05604013]
[1764061952630,9.6162,135.06,135.04,0.05604013]
[1764061952818,2.95,135.05,135.04,0.05604013]
[1764061960931,3.00416797,135.07,135.04,0.05604013]
[1764061961139,0.05416797,135.07,135.04,0.05604013]
[1764061961529,0.05416797,135.07,135.05,25.6]
[1764061962030,3.00416797,135.07,135.05,25.6]
[1764061962344,0.05416797,135.07,135.05,25.6]
[1764061962537,0.05416797,135.07,135.04,6.72294013]
[1764061962738,0.05416797,135.07,135.05,25.6]
[1764061966044,0.05416797,135.07,135.04,6.72294013]
[1764061966241,0.05416797,135.07,135.05,25.6]
[1764061966744,0.05416797,135.07,135.05,32.2663]
[1764061967144,2.95,135.11,135.06,2.15897249]
[1764061967341,2.95,135.11,135.07,6.6652]
[1764061968140,3.17398073,135.1,135.08,0.0524379]
[1764061969243,0.05398073,135.1,135.08,0.0524379]
[1764061970252,0.05398073,135.1,135.08,6.7173379]
[1764061970553,0.05398073,135.1,135.09,25.6]
[1764061970849,3.12,135.12,135.09,25.6]
[1764061971046,3.12,135.15,135.09,25.6]
[1764061971237,45.40143509,135.17,135.09,132.64270509]
[1764061971238,51.80743,135.17,135.09,132.64270509]
[1764061971438,3.12,135.16,135.08,13.69508007]
[1764061971650,3.12,135.16,135.09,25.6]
[1764061971846,6.6616,135.15,135.09,25.6]
[1764061972052,0.05626893,135.14,135.11,6.71836034]
[1764061973948,0.05626893,135.14,135.11,0.05496034]
[1764061974148,3.17626893,135.14,135.12,62.0]
[1764061974350,3.17626893,135.14,135.12,25.6]
[1764061974855,0.05626893,135.14,135.12,25.6]
[1764061975151,3.17626893,135.14,135.12,25.6]
[1764061976156,3.17626893,135.14,135.11,25.63496034]
[1764061980361,0.05626893,135.14,135.11,25.63496034]
[1764061981051,3.03,135.13,135.11,0.05496034]
[1764061981257,106.674,135.13,135.04,13.69508007]
[1764061981459,3.03,135.12,135.05,25.58]
[1764061982559,3.03,135.09,135.07,0.05423199]
[1764061983061,0.04699459,135.1,135.07,0.05423199]
[1764061984063,3.07699459,135.1,135.07,0.05423199]
[1764061985862,0.04699459,135.1,135.07,0.05423199]
[1764061987266,0.04699459,135.1,135.08,6.6649]
[1764061988966,0.04699459,135.1,135.08,68.6649]
[1764061991863,0.04699459,135.1,135.07,0.05423199]
[1764061991864,3.07699459,135.1,135.07,0.05423199]
[1764061992069,3.07699459,135.1,135.08,25.58]
[1764061992255,3.07699459,135.1,135.07,0.05423199]
[1764061993866,9.6945,135.09,135.07,0.05423199]
[1764061995374,3.03,135.08,135.07,0.05423199]
[1764061996470,9.6945,135.09,135.07,0.05423199]
[1764061996974,3.03,135.08,135.07,0.05423199]
[1764062008372,3.15,135.05,135.02,25.58]
[1764062009280,3.20112377,135.05,135.02,25.63507657]
[1764062010173,3.15,135.04,135.02,25.63507657]
[1764062010379,0.05112377,135.05,135.02,25.63507657]
[1764062010769,0.05112377,135.05,135.03,6.6674]
[1764062011173,3.15,135.08,135.02,42.70506173]
[1764062011374,6.664,135.1,135.03,62.0]
[1764062011677,3.15,135.09,135.05,6.6664]
[1764062012173,0.04751171,135.08,135.06,0.05683145]
[1764062013075,0.04751171,135.08,135.06,25.63683145]
[1764062013279,3.19751171,135.08,135.06,0.05683145]
[1764062013478,3.19751171,135.08,135.06,25.63683145]
[1764062017282,3.19751171,135.08,135.06,0.05683145]
[1764062018775,9.86251171,135.08,135.06,0.05683145]
[1764062018984,3.15,135.07,135.0,56.6685]
[1764062019184,3.15,135.07,135.01,25.56]
[1764062019587,3.15,135.03,135.01,25.56]
[1764062019889,3.20183338,135.03,135.01,25.60684171]
[1764062020093,9.86933338,135.03,135.01,0.04684171]
[1764062020290,3.15,135.02,135.01,0.04684171]
[1764062021291,9.86933338,135.03,135.01,0.04684171]
[1764062021991,3.20183338,135.03,135.01,0.04684171]
[1764062024687,9.86943338,135.03,135.01,0.04684171]
[1764062024884,3.15,135.02,135.01,25.62684171]
[1764062026795,3.15,135.02,135.01,0.04684171]
[1764062026988,9.8184,135.01,135.0,0.0030549]
[1764062028290,1.28958144,135.02,134.96,6.36490509]
[1764062028592,103.667,135.1,135.01,2.16189733]
[1764062028789,6.6645,135.1,135.03,2.99]
[1764062029093,105.84349733,135.08,134.99,13.69508007]
[1764062029287,6.72178873,135.05,135.02,0.05288168]
[1764062029692,0.05508873,135.05,135.02,0.05288168]
[1764062030195,8.82909733,135.04,135.02,0.05288168]
[1764062031189,6.6672,135.04,135.02,0.05288168]
[1764062031498,8.82909733,135.04,135.02,0.05288168]
[1764062031989,0.05508873,135.05,135.02,0.05288168]
[1764062032498,0.05508873,135.05,135.02,3.04288168]
[1764062034095,6.72178873,135.05,135.02,3.04288168]
[1764062034295,6.72178873,135.05,135.01,25.58]
[1764062034486,6.6667,135.05,135.01,25.58]
[1764062035394,0.04768927,135.04,135.02,0.052373]
[1764062036403,0.04768927,135.04,135.02,3.042373]
[1764062036895,6.71488927,135.04,135.02,0.052373]
[1764062037087,8.8767866,135.04,135.02,0.052373]
[1764062039997,6.71488927,135.04,135.02,0.052373]
[1764062042704,2.16189733,135.03,135.02,0.052373]
[1764062043701,6.6685,135.01,134.96,28.05]
[1764062043896,2.16189733,135.01,134.96,2.95]
[1764062044201,103.7272,135.02,134.96,2.95]
[1764062044598,105.88909733,135.02,134.96,2.95]
[1764062044796,0.05147621,135.0,134.98,0.05422625]
[1764062045095,6.72067621,135.0,134.98,0.05422625]
[1764062048902,6.72067621,135.0,134.98,3.00422625]
[1764062049299,6.72067621,135.0,134.98,0.05422625]
[1764062050706,0.05147621,135.0,134.98,3.00422625]
[1764062055116,0.05147621,135.0,134.98,28.58422625]
[1764062057712,6.72057621,135.0,134.98,0.05422625]
[1764062061022,6.72057621,135.0,134.98,3.22422625]
[1764062061223,0.05147621,135.0,134.98,3.22422625]
[1764062061413,103.6815,135.08,134.98,4.70422625]
[1764062061610,103.6815,135.08,134.99,25.58]
[1764062061611,105.87339733,135.04,134.99,25.58]
[1764062061816,6.6685,135.01,134.99,25.58]
[1764062062017,6.6685,135.01,134.97,28.75]
[1764062062210,6.6685,135.01,134.98,3.17]
[1764062062410,6.71639995,135.01,134.98,3.21956039]
[1764062063224,33.189,135.0,134.98,0.04956039]
[1764062064034,33.189,135.0,134.98,3.21956039]
[1764062065221,33.189,135.0,134.98,0.04956039]
[1764062075041,35.35089733,135.0,134.98,0.04956039]
[1764062078242,26.52,135.0,134.98,3.21956039]
[1764062078838,33.189,135.0,134.98,0.04956039]
[1764062080135,26.52,135.0,134.98,3.21956039]
[1764062082146,33.1891,135.0,134.98,3.21956039]
[1764062082347,33.1891,135.0,134.98,0.04956039]
[1764062088448,35.35099733,135.0,134.98,0.04956039]
[1764062090051,103.7587,134.98,134.92,13.69508007]
[1764062090253,2.16189733,134.97,134.93,16.68508007]
[1764062090447,105.91319733,134.99,134.93,2.99]
[1764062090649,6.67,134.98,134.94,2.99]
[1764062091150,0.04939395,134.97,134.95,3.03865119]
[1764062092150,0.04939395,134.97,134.95,16.73373126]
[1764062092357,0.04939395,134.97,134.96,2.99]
[1764062093254,26.21576321,134.98,134.96,2.99]
[1764062094249,0.055173,134.98,134.96,2.99]
[1764062095153,0.055173,134.98,134.95,19.74373126]
[1764062095454,0.055173,134.98,134.96,25.58]
[1764062096260,0.055173,134.98,134.96,25.62831471]
[1764062097245,0.055173,134.98,134.97,2.94]
[1764062097450,0.055173,134.98,134.96,2.98831471]
[1764062098057,6.725173,134.98,134.96,2.98831471]
[1764062099460,6.725173,134.98,134.94,25.58]
[1764062100448,0.055173,134.98,134.95,0.05257333]
[1764062101459,0.055173,134.98,134.96,2.94]
[1764062102662,0.055173,134.98,134.95,25.58]
[1764062103354,6.725273,134.98,134.95,25.58]
[1764062103554,6.725273,134.98,134.95,0.04897731]
[1764062104149,0.055173,134.98,134.95,0.04897731]
[1764062104554,0.055173,134.98,134.95,2.94]
[1764062106364,0.055173,134.98,134.95,25.56]
[1764062107063,0.055173,134.98,134.95,32.2313]
[1764062107966,0.055173,134.98,134.95,6.6713]
[1764062108352,0.055173,134.98,134.96,2.94]
[1764062112868,2.855173,134.98,134.96,2.94]
[1764062113866,0.055173,134.98,134.96,2.94]
[1764062116371,9.4689,135.01,134.97,2.94]
[1764062116572,6.6679,135.03,134.97,2.94]
[1764062117470,0.05022478,135.01,135.0,3.37]
[1764062119266,20.55,135.04,135.01,3.37]
[1764062119472,20.55,135.04,135.02,3.37]
[1764062119980,3.56,135.08,135.02,3.37]
[1764062120370,0.05146256,135.06,135.05,3.37]
[1764062120679,3.61146256,135.06,135.04,0.05628301]
[1764062120877,6.99310158,135.06,135.04,0.05628301]
[1764062121078,3.56,135.05,135.04,0.05628301]
[1764062122075,6.71746256,135.06,135.04,0.05628301]
[1764062122270,0.05146256,135.06,135.04,3.42628301]
[1764062122470,3.61146256,135.06,135.04,0.05628301]
[1764062122865,0.05146256,135.06,135.04,3.42628301]
[1764062124274,0.05146256,135.06,135.04,10.09288301]
[1764062124475,0.05146256,135.06,135.05,3.37]
[1764062124777,25.64,135.1,135.05,3.37]
[1764062124978,25.64,135.1,135.07,3.37]
[1764062125180,25.64,135.1,135.09,3.37]
[1764062125380,2.13558782,135.1,135.09,3.37]
[1764062125577,23.63,135.12,135.1,3.37]
[1764062125876,23.63,135.12,135.11,3.37]
[1764062125877,23.67732493,135.12,135.11,3.37]
[1764062126068,0.04732493,135.12,135.1,28.98442902]
[1764062127370,0.04732493,135.12,135.11,3.37]
[1764062128483,3.60732493,135.12,135.1,0.05442902]
[1764062129477,3.56,135.11,135.1,0.05442902]
[1764062132580,3.60732493,135.12,135.1,0.05442902]
[1764062135677,0.04732493,135.12,135.1,3.42442902]
[1764062136282,0.04732493,135.12,135.11,28.91]
[1764062137482,0.04732493,135.12,135.1,0.05442902]
[1764062137685,0.04732493,135.12,135.1,3.42442902]
[1764062138690,3.60732493,135.12,135.1,0.05442902]
[1764062139191,0.04732493,135.12,135.1,3.42442902]
[1764062147202,3.45732493,135.12,135.1,0.05442902]
[1764062147398,6.83896395,135.12,135.1,0.05442902]
[1764062147601,3.41,135.11,135.1,0.05442902]
[1764062151610,10.12042493,135.12,135.1,0.05442902]
[1764062152820,3.41,135.11,135.1,0.05442902]
[1764062156116,3.41,135.09,135.06,3.63]
[1764062156317,3.41,135.08,135.04,3.63]
[1764062157122,0.04860365,135.07,135.05,0.05111875]
[1764062157618,0.04860365,135.07,135.05,3.36111875]
[1764062161423,3.55860365,135.07,135.05,0.05111875]
[1764062162120,6.6683,135.02,135.0,3.31]
[1764062162322,12.33817356,135.02,134.97,3.31]
[1764062163120,0.04922751,135.01,134.98,0.05103291]
[1764062163324,0.04922751,135.01,134.99,3.31]
[1764062163726,0.04922751,135.01,134.98,0.05103291]
[1764062163727,2.15987356,135.0,134.98,0.05103291]
[1764062163929,3.51,134.99,134.98,0.05103291]
[1764062164725,3.51,134.99,134.93,3.31]
[1764062164929,12.33997356,134.98,134.93,3.31]
[1764062165230,12.33997356,134.98,134.9,27.67987356]
[1764062165231,2.15987356,134.96,134.9,3.31]
[1764062165525,3.51,134.94,134.9,3.31]
[1764062165721,0.05198038,134.93,134.9,3.31]
[1764062166119,3.51,134.92,134.88,3.31]
[1764062166520,3.51,134.91,134.88,3.31]
[1764062166721,2.15987356,134.9,134.84,3.31]
[1764062167220,0.04784857,134.88,134.84,5.46987356]
[1764062167523,0.04784857,134.88,134.86,3.31]
[1764062168126,0.04784857,134.88,134.84,2.15987356]
[1764062168425,0.04784857,134.88,134.85,3.31]
[1764062168833,0.04784857,134.88,134.85,5.46987356]
[1764062169029,0.04784857,134.88,134.86,3.31]
[1764062169826,3.55784857,134.88,134.83,4.6000595]
[1764062170016,3.55784857,134.88,134.83,3.31]
[1764062170222,3.55784857,134.88,134.8,3.31]
[1764062170422,0.05653597,134.85,134.81,3.31]
[1764062171229,0.05653597,134.85,134.82,3.31]
[1764062172327,0.05653597,134.85,134.79,1.29032258]
[1764062172328,3.51,134.84,134.79,1.29032258]
[1764062172523,2.21640953,134.85,134.79,3.31]
[1764062173027,0.05653597,134.85,134.79,3.31]
[1764062173224,0.05653597,134.85,134.8,3.31]
[1764062173833,0.05653597,134.85,134.81,3.31]
[1764062174436,0.05653597,134.85,134.82,3.31]
[1764062174738,0.05653597,134.85,134.84,3.31]
[1764062175241,25.16,134.87,134.84,3.31]
[1764062175431,25.16,134.87,134.86,3.31]
[1764062175938,25.16,134.87,134.83,165.866]
[1764062175939,25.16,134.87,134.83,62.0]
[1764062176128,3.51,134.86,134.83,62.0]
[1764062176329,3.55732803,134.86,134.83,0.05372366]
[1764062177235,3.23,134.85,134.83,0.05372366]
[1764062177637,3.23,134.84,134.83,0.05372366]
[1764062178035,6.86987356,134.84,134.76,4.58070544]
[1764062178234,3.23,134.83,134.76,3.29]
[1764062178430,3.23,134.83,134.77,3.29]
[1764062179242,0.04713664,134.81,134.79,3.29]
[1764062180239,0.04713664,134.81,134.77,3.29]
[1764062180736,0.04713664,134.81,134.79,3.29]
[1764062181046,3.23,134.86,134.79,3.29]
[1764062181436,25.16,134.87,134.81,3.29]
[1764062182141,0.05449666,134.85,134.84,3.29]
[1764062182543,25.16,134.87,134.84,3.29]
[1764062182745,25.16,134.87,134.85,3.29]
[1764062183542,25.20678388,134.87,134.85,3.29]
[1764062183749,21.76678388,134.87,134.86,3.29]
[1764062184134,0.04678388,134.87,134.86,3.29]
[1764062184331,3.23,134.94,134.88,6.6746]
[1764062184532,108.91447705,134.99,134.88,3.29]
[1764062184733,3.23,134.98,134.92,3.29]
[1764062185547,0.04925689,134.96,134.94,0.05598597]
[1764062185748,3.27925689,134.96,134.94,0.05598597]
[1764062187540,9.95035689,134.96,134.94,0.05598597]
[1764062187745,3.23,134.95,134.94,0.05598597]
[1764062188448,3.23,134.95,134.89,3.29]
[1764062188449,3.23,134.94,134.89,3.29]
[1764062189448,3.28508662,134.93,134.9,0.05409997]
[1764062194447,3.28508662,134.93,134.9,3.34409997]
[1764062195346,0.05508662,134.93,134.9,3.34409997]
[1764062195955,0.05508662,134.93,134.91,9.9632]
[1764062196142,0.05508662,134.93,134.91,3.29]
[1764062196343,3.28508662,134.93,134.9,0.05409997]
[1764062201950,9.95758662,134.93,134.9,0.05409997]
[1764062202150,3.23,134.92,134.9,0.05409997]
[1764062202555,3.28508662,134.93,134.9,0.05409997]
[1764062202863,3.28508662,134.93,134.9,3.34409997]
[1764062204362,0.05508662,134.93,134.9,3.34409997]
[1764062204560,3.28508662,134.93,134.9,3.34409997]
[1764062204761,3.28508662,134.93,134.9,0.05409997]
[1764062205455,3.23,134.91,134.9,0.05409997]
[1764062206760,0.05508662,134.93,134.84,68.6766]
[1764062206761,3.23,134.89,134.84,71.9666]
[1764062206961,3.23,134.89,134.84,3.29]
[1764062207758,0.05423368,134.88,134.85,0.04142321]
[1764062207955,3.02423368,134.88,134.85,0.04142321]
[1764062209054,9.69913368,134.88,134.85,0.04142321]
[1764062209259,2.97,134.87,134.85,0.04142321]
[1764062210362,3.02423368,134.88,134.85,0.04142321]
[1764062211060,9.69933368,134.88,134.85,0.04142321]
[1764062211263,2.97,134.87,134.85,0.04142321]
[1764062211766,2.97,134.86,134.85,0.04142321]
[1764062212861,6.6755,134.87,134.85,0.04142321]
[1764062213064,9.6455,134.87,134.85,0.04142321]
[1764062213262,2.97,134.86,134.85,0.04142321]
[1764062213858,2.97,134.86,134.8,3.1]
[1764062214167,2.97,134.84,134.77,3.1]
[1764062214567,2.97,134.82,134.77,3.1]
[1764062215064,3.02654587,134.81,134.77,3.1]
[1764062216368,3.02654587,134.81,134.78,3.1]
[1764062216759,0.05654587,134.81,134.79,3.1]
[1764062217765,3.01,134.87,134.8,3.1]
[1764062218369,3.01,134.86,134.8,3.1]
[1764062218775,3.05956948,134.84,134.82,0.04943381]
[1764062219781,3.01,134.83,134.74,4.39084907]
[1764062219964,3.01,134.83,134.75,9.781]
[1764062220274,3.01,134.83,134.75,3.1]
[1764062220472,3.01,134.83,134.76,3.1]
[1764062220671,0.04719861,134.81,134.76,3.1]
[1764062220862,0.04719861,134.81,134.78,107.0055]
[1764062221067,3.05719861,134.81,134.77,9.78]
[1764062221465,3.05719861,134.81,134.78,3.1]
[1764062221664,0.04719861,134.81,134.79,3.1]
[1764062222670,0.04719861,134.81,134.79,71.7792]
[1764062222874,0.04719861,134.81,134.8,3.1]
[1764062224167,0.04719861,134.81,134.79,62.0]
[1764062224371,3.05719861,134.81,134.79,62.0]
[1764062224573,3.05719861,134.81,134.78,3.1]
[1764062225174,0.04719861,134.81,134.78,9.7796]
[1764062225372,0.04719861,134.81,134.78,3.1]
[1764062226063,0.04719861,134.81,134.8,3.1]
[1764062227475,0.04719861,134.81,134.8,65.1]
[1764062229978,0.04719861,134.81,134.79,3.1]
[1764062231277,0.04719861,134.81,134.79,9.7792]
[1764062231877,3.05719861,134.81,134.75,3.1]
[1764062232085,3.05719861,134.81,134.78,3.1]
[1764062234073,3.05719861,134.81,134.75,9.7809]
[1764062234276,3.05719861,134.81,134.75,35.3409]
[1764062234675,9.73559861,134.81,134.76,3.1]
[1764062234877,3.01,134.8,134.76,3.1]
[1764062235074,9.73559861,134.81,134.76,3.1]
[1764062235780,3.01,134.78,134.74,3.1]
[1764062236082,3.06174432,134.77,134.74,3.1]
[1764062237075,3.06174432,134.77,134.74,65.1]
[1764062237479,0.05174432,134.77,134.74,65.1]
[1764062237783,3.03174432,134.77,134.74,65.1]
[1764062238377,3.03174432,134.77,134.74,3.1]
[1764062239177,3.03174432,134.77,134.73,9.6422]
[1764062239582,3.03174432,134.77,134.74,2.96]
[1764062240171,3.03174432,134.77,134.72,28.01188324]
[1764062240376,3.03174432,134.77,134.73,2.96]
[1764062242280,3.03174432,134.77,134.74,2.96]
[1764062242476,0.05174432,134.77,134.74,2.96]
[1764062242981,0.05174432,134.77,134.75,2.96]
[1764062243385,0.05174432,134.77,134.75,9.6412]
[1764062243590,28.16,134.83,134.76,2.96]
[1764062243884,2.98,134.81,134.73,2.96]
[1764062244694,3.02983162,134.78,134.76,0.05334873]
[1764062244879,3.02798612,134.78,134.76,0.05334873]
[1764062245184,0.04798612,134.78,134.72,2.45188324]
[1764062245489,3.02798612,134.78,134.73,2.96]
[1764062247583,3.02798612,134.78,134.73,6.6822]
[1764062247786,3.02798612,134.78,134.74,2.96]
[1764062249387,0.04798612,134.78,134.74,2.96]
[1764062250590,0.04798612,134.78,134.75,6.6811]
[1764062250789,0.04798612,134.78,134.76,2.96]
[1764062251589,0.04798612,134.78,134.74,9.6415]
[1764062251794,0.04798612,134.78,134.75,2.96]
[1764062252194,0.04798612,134.78,134.75,6.35156485]
[1764062252388,0.04798612,134.78,134.76,2.96]
[1764062252788,3.02798612,134.78,134.75,28.54]
[1764062252986,0.04798612,134.78,134.76,2.96]
[1764062254696,3.02798612,134.78,134.74,2.96]
[1764062254896,0.04798612,134.78,134.74,2.96]
[1764062255293,3.02798612,134.78,134.74,2.96]
[1764062256295,2.98,134.77,134.72,2.45188324]
[1764062256883,0.04798612,134.78,134.73,2.96]
[1764062257288,0.04798612,134.78,134.73,28.54]
[1764062257490,0.04798612,134.78,134.74,2.96]
[1764062258993,3.02798612,134.78,134.74,2.96]
[1764062259298,3.02798612,134.78,134.75,64.96]
[1764062259493,9.70788612,134.78,134.72,30.99188324]
[1764062259689,2.98,134.77,134.72,5.41188324]
[1764062259889,2.98,134.77,134.72,2.45188324]
[1764062260498,2.98,134.77,134.72,5.41188324]
[1764062260993,2.98,134.75,134.72,2.45188324]
[1764062261195,3.02736469,134.75,134.72,2.45188324]
[1764062261397,6.6819,134.74,134.72,2.45188324]
[1764062261595,2.98,134.73,134.72,2.45188324]
[1764062264700,0.04736469,134.75,134.68,2.96]
[1764062264701,2.98,134.72,134.68,2.96]
[1764062264889,0.05693096,134.71,134.68,2.96]
[1764062267204,0.05693096,134.71,134.68,6.35156485]
[1764062267402,0.05693096,134.71,134.69,3.0]
[1764062267597,0.05693096,134.71,134.7,65.0]
[1764062268097,2.93,134.77,134.71,3.0]
[1764062268702,128.2581,134.8,134.7,90.99156485]
[1764062268703,27.29,134.8,134.72,3.0]
[1764062268903,0.04724214,134.77,134.75,3.0488258]
[1764062274997,0.04724214,134.77,134.76,3.0]
[1764062276408,0.04724214,134.77,134.75,0.0488258]
[1764062276600,0.04724214,134.77,134.75,3.1288258]
[1764062279809,0.04724214,134.77,134.76,3.08]
[1764062280206,3.02,134.83,134.76,3.08]
[1764062280601,3.02,134.83,134.78,3.08]
[1764062281107,0.05526306,134.82,134.79,3.08]
[1764062281316,0.05526306,134.82,134.79,3.13566771]
[1764062281808,0.05526306,134.82,134.79,0.05566771]
[1764062282006,3.07526306,134.82,134.79,0.05566771]
[1764062282310,0.05526306,134.82,134.79,3.13566771]
[1764062283210,0.05526306,134.82,134.8,6.6786]
[1764062283508,0.05526306,134.82,134.81,3.08]
[1764062283709,22.6,134.86,134.81,3.08]
[1764062284013,22.6,134.86,134.83,3.08]
[1764062284698,22.65147709,134.86,134.83,3.13099886]
[1764062285615,22.65147709,134.86,134.84,3.08]
[1764062286321,22.65147709,134.86,134.85,3.08]
[1764062286817,0.05147709,134.86,134.85,3.08]
[1764062287916,7.58687,134.9,134.87,3.08]
[1764062288410,10.60687,134.9,134.87,3.08]
[1764062289115,10.65618044,134.9,134.87,0.05458232]
[1764062289319,3.02,134.89,134.87,0.05458232]
[1764062290725,5.18696284,134.89,134.87,0.05458232]
[1764062290911,3.02,134.88,134.87,0.05458232]
[1764062291513,7.63618044,134.9,134.87,3.13458232]
[1764062291716,7.63618044,134.9,134.88,3.08]
[1764062295122,7.63618044,134.9,134.89,3.08]
[1764062295525,5.20520395,134.9,134.89,5.24696284]